[Event "2nd Irena Warakomska Memorial-A"]
[Site "Suwalki"]
[Date "2018.08.04"]
[Round "5"]
[White "Jankowiak, Tomasz"]
[Black "Mulet, Piotr"]
[Result "0-1"]
[ECO "C04"]
[WhiteElo "2117"]
[BlackElo "2238"]
[Annotator "NA"]
[PlyCount "74"]
[EventDate "2018.08.01"]
[EventType "swiss"]
[EventCountry "POL"]
[SourceTitle "playchess.com"]
[Source "ChessBase"]
[SourceQuality "1"]
[TimeControl "40/5400+30:1800+30"]

1. e4 {[%emt 0:00:00]} e6 {[%emt 0:00:00]} 2. d4 {[%emt 0:00:00]} d5 {[%emt 0:00:00]} 3. Nd2 {[%emt 0:00:00]} Nc6 {[%emt 0:00:00]} 4. Ngf3 {[%emt 0:01:53]} Nf6 {[%emt 0:00:00]} 5. e5 {[%emt 0:08:24]} Nd7 {[%emt 0:02:08]} 6. c3 {[%emt 0:00:13]} f6 {[%emt 0:00:57]} 7. exf6 {[%emt 0:00:34]} Qxf6 {[%emt 0:00:22]} 8. Bb5 {[%emt 0:13:37]} Bd6 {[%emt 0:00:46]} 9. O-O {[%emt 0:00:59]} O-O {[%emt 0:00:18]} 10. Qe2 {[%emt 0:01:36]} e5 {[%emt 0:05:07]} 11. Bxc6 {[%emt 0:07:07]} bxc6 {[%emt 0:00:10]} 12. dxe5 {[%emt 0:00:32]} Nxe5 {[%emt 0:00:11]} 13. Nxe5 {[%emt 0:00:22]} Bxe5 {[%emt 0:00:13]} 14. Re1 {[%emt 0:17:16]} Bd6 {[%emt 0:01:05]} 15. Nf1 {[%emt 0:00:19]} c5 {[%emt 0:15:13]} 16. Be3 {[%emt 0:02:10]} c6 {[%emt 0:00:11]} 17. f3 {[%emt 0:00:55]} Rb8 {[%emt 0:06:56]} 18. Rad1 {[%emt 0:05:52]} a5 {[%emt 0:01:29]} 19. a4 {[%emt 0:07:39]} Qh4 {[%emt 0:04:54]} 20. Ra1 {[%emt 0:01:34]} h6 {[%emt 0:02:41]} 21. Bf2 {[%emt 0:03:11]} Qf6 {[%emt 0:00:41]} 22. Bg3 {[%emt 0:01:59]} c4 {[%emt 0:00:13]} 23. Bf2 {[%emt 0:04:42]} Qg6 {[%emt 0:08:08]} 24. Bd4 {[%emt 0:04:29]} h5 {[%emt 0:00:32]} 25. Qf2 {[%emt 0:02:49]} Bg4 {[%emt 0:04:29]} 26. Kh1 {[%emt 0:00:03]} Bf5 {[%emt 0:06:17]} 27. Bb6 {[%emt 0:01:35]} h4 {[%emt 0:00:21]} 28. h3 {[%emt 0:04:53]} Bd3 {[%emt 0:02:52]} 29. Bxa5 {[%emt 0:00:54]} Bxf1 {[%emt 0:02:12]} 30. Rxf1 {[%emt 0:00:56]} c5 {[%emt 0:01:11]} 31. Qd2 {[%emt 0:07:33]} d4 {[%emt 0:07:56]} 32. cxd4 {[%emt 0:01:18]} Qg3 {[%emt 0:00:24]} 33. f4 {[%emt 0:00:14]} Rxf4 {[%emt 0:00:13]} 34. Kg1 {[%emt 0:00:37]} Rxd4 {[%emt 0:03:45]} 35. Qc3 {[%emt 0:00:40]} Qh2+ {[%emt 0:00:19]} 36. Kf2 {[%emt 0:00:02]} Rf8+ {[%emt 0:00:20]} 37. Ke3 {[%emt 0:00:34]} Qe5# {[%emt 0:00:11]} 0-1

[Event "2nd Irena Warakomska Memorial-A"]
[Site "Suwalki"]
[Date "2018.08.04"]
[Round "5"]
[White "Tarun V Kanth"]
[Black "Bukojemski, Adam"]
[Result "1/2-1/2"]
[ECO "E70"]
[WhiteElo "2102"]
[BlackElo "2233"]
[Annotator "NA"]
[PlyCount "49"]
[EventDate "2018.08.01"]
[EventType "swiss"]
[EventCountry "POL"]
[SourceTitle "playchess.com"]
[Source "ChessBase"]
[SourceQuality "1"]
[TimeControl "40/5400+30:1800+30"]

1. d4 {[%emt 0:00:00]} Nf6 {[%emt 0:00:00]} 2. c4 {[%emt 0:00:00]} g6 {[%emt 0:00:00]} 3. Nc3 {[%emt 0:00:00]} Bg7 {[%emt 0:00:00]} 4. e4 {[%emt 0:00:00]} d6 {[%emt 0:00:00]} 5. Bd3 {[%emt 0:00:00]} e5 {[%emt 0:01:02]} 6. d5 {[%emt 0:00:00]} Na6 {[%emt 0:01:12]} 7. Nge2 {[%emt 0:00:59]} Nc5 {[%emt 0:00:39]} 8. Bc2 {[%emt 0:00:01]} a5 {[%emt 0:00:19]} 9. O-O {[%emt 0:00:02]} O-O {[%emt 0:00:16]} 10. h3 {[%emt 0:00:30]} Bd7 {[%emt 0:05:09]} 11. Be3 {[%emt 0:00:04]} b6 {[%emt 0:00:39]} 12. Qd2 {[%emt 0:00:51]} Qc8 {[%emt 0:05:49]} 13. b3 {[%emt 0:08:53]} Nh5 {[%emt 0:06:31]} 14. Bh6 {[%emt 0:10:04]} f5 {[%emt 0:31:56]} 15. exf5 {[%emt 0:05:42]} Bxf5 {[%emt 0:03:50]} 16. Bxf5 {[%emt 0:11:26]} Rxf5 {[%emt 0:00:33]} 17. g4 {[%emt 0:13:28]} Rf3 {[%emt 0:00:13]} 18. gxh5 {[%emt 0:06:49]} Bxh6 {[%emt 0:08:07]} 19. Qxh6 {[%emt 0:00:18]} Qxh3 {[%emt 0:00:05]} 20. Qg5 {[%emt 0:04:04]} Raf8 {[%emt 0:00:07]} 21. h6 {[%emt 0:16:49]} R8f5 {[%emt 0:12:50]} 22. Qd8+ {[%emt 0:01:16]} Rf8 {[%emt 0:03:24]} 23. Qg5 {[%emt 0:00:01]} R8f5 {[%emt 0:06:37]} 24. Qd8+ {[%emt 0:02:53]} Rf8 {[%emt 0:01:23]} 25. Qg5 1/2-1/2

[Event "2nd Irena Warakomska Memorial-A"]
[Site "Suwalki"]
[Date "2018.08.04"]
[Round "5"]
[White "Dmochowska, Agnieszka"]
[Black "Zaika, Daniil"]
[Result "1-0"]
[ECO "B90"]
[WhiteElo "2096"]
[BlackElo "2213"]
[Annotator "NA"]
[PlyCount "65"]
[EventDate "2018.08.01"]
[EventType "swiss"]
[EventCountry "POL"]
[SourceTitle "playchess.com"]
[Source "ChessBase"]
[SourceQuality "1"]
[TimeControl "40/5400+30:1800+30"]

1. e4 {[%emt 0:00:00]} c5 {[%emt 0:00:00]} 2. Nf3 {[%emt 0:00:00]} d6 {[%emt 0:00:02]} 3. d4 {[%emt 0:00:00]} cxd4 {[%emt 0:00:09]} 4. Nxd4 {[%emt 0:00:03]} Nf6 {[%emt 0:00:09]} 5. Nc3 {[%emt 0:00:04]} a6 {[%emt 0:00:11]} 6. Be3 {[%emt 0:00:09]} e5 {[%emt 0:01:14]} 7. Nf3 {[%emt 0:00:29]} Be6 {[%emt 0:10:35]} 8. Ng5 {[%emt 0:03:28]} b5 {[%emt 0:21:18]} 9. Be2 {[%emt 0:07:35]} Bc4 {[%emt 0:06:10]} 10. Bxc4 {[%emt 0:06:44]} bxc4 {[%emt 0:00:25]} 11. O-O {[%emt 0:00:26]} Nbd7 {[%emt 0:02:39]} 12. Nf3 {[%emt 0:08:46]} Be7 {[%emt 0:04:32]} 13. Bg5 {[%emt 0:06:39]} O-O {[%emt 0:01:42]} 14. Qe2 {[%emt 0:04:43]} Qc7 {[%emt 0:06:08]} 15. Rfd1 {[%emt 0:01:08]} Rab8 {[%emt 0:00:50]} 16. Rab1 {[%emt 0:00:47]} Rb4 {[%emt 0:03:14]} 17. Bxf6 {[%emt 0:14:24]} Nxf6 {[%emt 0:00:49]} 18. Nd5 {[%emt 0:02:16]} Nxd5 {[%emt 0:00:09]} 19. Rxd5 {[%emt 0:00:08]} c3 {[%emt 0:16:32]} 20. b3 {[%emt 0:00:24]} f5 {[%emt 0:00:17]} 21. exf5 {[%emt 0:02:11]} Qb7 {[%emt 0:05:32]} 22. Rbd1 {[%emt 0:07:55]} Rxf5 {[%emt 0:02:00]} 23. h3 {[%emt 0:00:41]} Rbf4 {[%emt 0:02:22]} 24. Qe3 {[%emt 0:03:56]} Qc6 {[%emt 0:07:19]} 25. R5d3 {[%emt 0:09:07]} Qe8 {[%emt 0:02:00]} 26. Rxc3 {[%emt 0:02:10]} Qg6 {[%emt 0:01:34]} 27. Qe2 {[%emt 0:02:59]} e4 {[%emt 0:00:38]} 28. Rc8+ {[%emt 0:05:39]} Bf8 {[%emt 0:00:12]} 29. Nd4 {[%emt 0:03:27]} Rxf2 {[%emt 0:00:55]} 30. Qxe4 {[%emt 0:01:44]} Rxg2+ {[%emt 0:02:19]} 31. Qxg2 {[%emt 0:00:30]} Rg5 {[%emt 0:00:05]} 32. Rxf8+ {[%emt 0:00:11]} Kxf8 {[%emt 0:01:38]} 33. Ne6+ {[%emt 0:00:12]} 1-0

[Event "2nd Irena Warakomska Memorial-A"]
[Site "Suwalki"]
[Date "2018.08.05"]
[Round "6"]
[White "Szostko, Jakub"]
[Black "Popiol, Michal"]
[Result "1-0"]
[ECO "C07"]
[WhiteElo "2299"]
[BlackElo "2126"]
[Annotator "NA"]
[PlyCount "111"]
[EventDate "2018.08.01"]
[EventType "swiss"]
[EventCountry "POL"]
[SourceTitle "playchess.com"]
[Source "ChessBase"]
[SourceQuality "1"]
[TimeControl "40/5400+30:1800+30"]

1. e4 {[%emt 0:00:00]} e6 {[%emt 0:00:46]} 2. d4 {[%emt 0:00:00]} d5 {[%emt 0:00:05]} 3. Nd2 {[%emt 0:00:00]} c5 {[%emt 0:00:13]} 4. exd5 {[%emt 0:00:13]} Qxd5 {[%emt 0:00:05]} 5. Ngf3 {[%emt 0:01:00]} cxd4 {[%emt 0:01:44]} 6. Bc4 {[%emt 0:00:29]} Qd6 {[%emt 0:00:23]} 7. O-O {[%emt 0:00:35]} Nf6 {[%emt 0:00:23]} 8. Nb3 {[%emt 0:00:20]} Nc6 {[%emt 0:00:11]} 9. Nbxd4 {[%emt 0:00:27]} Nxd4 {[%emt 0:00:05]} 10. Nxd4 {[%emt 0:00:14]} a6 {[%emt 0:00:05]} 11. Re1 {[%emt 0:01:06]} Qc7 {[%emt 0:00:17]} 12. Bf1 Bd6 {[%emt 0:17:25]} 13. Nf5 {[%emt 0:06:27]} Bxh2+ {[%emt 0:01:11]} 14. Kh1 {[%emt 0:00:07]} O-O {[%emt 0:00:03]} 15. Nxg7 {[%emt 0:13:12]} Rd8 {[%emt 0:08:06]} 16. Bd3 {[%emt 0:02:09]} Kxg7 {[%emt 0:02:35]} 17. Qd2 Bf4 {[%emt 0:17:43]} 18. Qxf4 {[%emt 0:00:59]} Qxf4 {[%emt 0:00:06]} 19. Bxf4 {[%emt 0:00:06]} Nd5 20. Bd2 {[%emt 0:03:39]} b5 {[%emt 0:00:15]} 21. Rad1 {[%emt 0:12:02]} Bb7 {[%emt 0:01:26]} 22. Re5 h6 23. Rh5 {[%emt 0:11:04]} Rh8 {[%emt 0:11:12]} 24. Re1 {[%emt 0:03:21]} Rae8 {[%emt 0:01:30]} 25. Rh4 f5 26. c4 {[%emt 0:10:57]} bxc4 {[%emt 0:06:35]} 27. Bxc4 {[%emt 0:07:04]} Kg6 {[%emt 0:07:56]} 28. Rh3 Rh7 {[%emt 0:05:49]} 29. Ra3 {[%emt 0:06:27]} Nc7 {[%emt 0:00:04]} 30. Bf4 {[%emt 0:03:38]} Bd5 {[%emt 0:00:12]} 31. Bxa6 {[%emt 0:01:31]} Nxa6 {[%emt 0:00:10]} 32. Rxa6 {[%emt 0:00:07]} h5 {[%emt 0:01:52]} 33. Be5 {[%emt 0:03:05]} h4 {[%emt 0:00:21]} 34. Kh2 Rc8 35. Bc3 {[%emt 0:04:04]} Kh5 {[%emt 0:05:35]} 36. Ra4 {[%emt 0:03:52]} Rg8 {[%emt 0:02:22]} 37. f3 {[%emt 0:01:02]} Kg6 {[%emt 0:04:13]} 38. Kh3 {[%emt 0:01:57]} Rc8 {[%emt 0:02:35]} 39. a3 Bc4 {[%emt 0:04:46]} 40. Rb4 {[%emt 0:00:00]} Rh5 {[%emt 0:00:00]} 41. Rb7 {[%emt 0:08:39]} Rg8 {[%emt 0:03:30]} 42. Be5 f4 {[%emt 0:06:42]} 43. Bxf4 {[%emt 0:06:03]} Kf6 {[%emt 0:00:05]} 44. Rb4 {[%emt 0:02:25]} Bd3 45. Rb8 {[%emt 0:03:54]} Rg6 {[%emt 0:04:36]} 46. Bd2 Rd5 {[%emt 0:08:41]} 47. Bc3+ {[%emt 0:05:46]} Kg5 48. Rf8 {[%emt 0:02:21]} Bf5+ {[%emt 0:01:53]} 49. Kh2 Rd7 {[%emt 0:08:29]} 50. Re2 {[%emt 0:01:49]} Rh7 {[%emt 0:01:25]} 51. Rd2 Kf4 52. Re2 {[%emt 0:03:26]} Kg5 {[%emt 0:00:35]} 53. Be5 {[%emt 0:01:41]} Kh5 {[%emt 0:00:57]} 54. Rd2 {[%emt 0:00:42]} Bb1 {[%emt 0:01:14]} 55. Rd4 {[%emt 0:01:09]} Bf5 {[%emt 0:00:13]} 56. Bf6 {[%emt 0:00:43]} 1-0

[Event "2nd Irena Warakomska Memorial-A"]
[Site "Suwalki"]
[Date "2018.08.05"]
[Round "6"]
[White "Sliwicka, Alicja"]
[Black "Kumala, Aleksander"]
[Result "1-0"]
[ECO "B03"]
[WhiteElo "2293"]
[BlackElo "2238"]
[Annotator "NA"]
[PlyCount "113"]
[EventDate "2018.08.01"]
[EventType "swiss"]
[EventCountry "POL"]
[SourceTitle "playchess.com"]
[Source "ChessBase"]
[SourceQuality "1"]
[TimeControl "40/5400+30:1800+30"]

1. e4 {[%emt 0:00:00]} Nf6 {[%emt 0:00:00]} 2. e5 {[%emt 0:00:00]} Nd5 {[%emt 0:00:00]} 3. d4 {[%emt 0:00:00]} d6 {[%emt 0:00:00]} 4. c4 {[%emt 0:00:00]} Nb6 {[%emt 0:00:02]} 5. exd6 {[%emt 0:00:00]} exd6 {[%emt 0:00:02]} 6. Nc3 {[%emt 0:00:06]} Be7 {[%emt 0:00:06]} 7. Bd3 {[%emt 0:00:06]} O-O {[%emt 0:00:06]} 8. Nge2 {[%emt 0:00:06]} Na6 {[%emt 0:00:06]} 9. a3 {[%emt 0:00:06]} c6 {[%emt 0:00:33]} 10. O-O {[%emt 0:00:27]} Nc7 {[%emt 0:00:22]} 11. b3 {[%emt 0:00:10]} d5 {[%emt 0:00:18]} 12. c5 {[%emt 0:00:14]} Nd7 {[%emt 0:00:06]} 13. Be3 {[%emt 0:00:34]} Bf6 {[%emt 0:10:51]} 14. b4 {[%emt 0:03:06]} Re8 {[%emt 0:02:54]} 15. Qd2 {[%emt 0:01:04]} Nf8 {[%emt 0:11:57]} 16. Rad1 {[%emt 0:07:50]} Nce6 {[%emt 0:20:21]} 17. a4 {[%emt 0:05:16]} g6 {[%emt 0:07:28]} 18. b5 {[%emt 0:05:25]} Bg7 {[%emt 0:08:57]} 19. Na2 {[%emt 0:06:48]} f5 {[%emt 0:04:50]} 20. f4 {[%emt 0:10:34]} Bd7 {[%emt 0:04:08]} 21. Bf2 {[%emt 0:06:06]} Qc7 {[%emt 0:03:44]} 22. Rb1 {[%emt 0:03:22]} Bh6 {[%emt 0:01:13]} 23. g3 {[%emt 0:02:54]} Re7 {[%emt 0:05:28]} 24. a5 {[%emt 0:01:45]} Rae8 {[%emt 0:02:49]} 25. a6 {[%emt 0:05:33]} bxa6 {[%emt 0:00:57]} 26. b6 {[%emt 0:02:15]} axb6 {[%emt 0:02:01]} 27. cxb6 {[%emt 0:01:49]} Qb8 {[%emt 0:02:26]} 28. h4 {[%emt 0:03:52]} Bc8 {[%emt 0:01:30]} 29. Nb4 {[%emt 0:05:42]} Qa8 {[%emt 0:01:07]} 30. Nc3 {[%emt 0:07:05]} a5 {[%emt 0:01:11]} 31. Nc2 {[%emt 0:00:30]} Rb7 {[%emt 0:03:25]} 32. Na4 {[%emt 0:00:15]} Nd7 {[%emt 0:00:20]} 33. Rfe1 {[%emt 0:02:18]} Bf8 {[%emt 0:00:55]} 34. Qc3 {[%emt 0:02:07]} Rb8 {[%emt 0:00:45]} 35. Rec1 {[%emt 0:06:25]} Bd6 {[%emt 0:01:50]} 36. Rb3 {[%emt 0:02:57]} Bb7 {[%emt 0:03:15]} 37. Nc5 {[%emt 0:02:05]} Ndxc5 {[%emt 0:01:48]} 38. dxc5 {[%emt 0:00:07]} Bf8 {[%emt 0:00:20]} 39. Ra3 {[%emt 0:01:29]} a4 {[%emt 0:00:38]} 40. Qb4 {[%emt 0:00:00]} Rbd8 {[%emt 0:00:00]} 41. Rxa4 {[%emt 0:04:46]} Qb8 {[%emt 0:05:35]} 42. Na1 {[%emt 0:03:58]} Rd7 {[%emt 0:10:47]} 43. Nb3 {[%emt 0:00:34]} Bg7 {[%emt 0:02:59]} 44. Ra7 {[%emt 0:01:35]} h6 {[%emt 0:03:04]} 45. Re1 {[%emt 0:02:36]} Rde7 {[%emt 0:03:10]} 46. Na5 {[%emt 0:03:06]} Nd8 {[%emt 0:00:53]} 47. Rxe7 {[%emt 0:00:49]} Rxe7 {[%emt 0:00:07]} 48. Ba6 {[%emt 0:02:42]} g5 {[%emt 0:01:21]} 49. Bxb7 {[%emt 0:00:53]} Re4 {[%emt 0:01:06]} 50. Qxe4 {[%emt 0:01:08]} fxe4 {[%emt 0:00:40]} 51. Ra8 {[%emt 0:00:05]} Qxa8 {[%emt 0:00:31]} 52. Bxa8 {[%emt 0:00:04]} gxf4 {[%emt 0:00:39]} 53. gxf4 {[%emt 0:00:11]} d4 {[%emt 0:00:15]} 54. Nxc6 {[%emt 0:01:29]} d3 {[%emt 0:00:30]} 55. Be3 {[%emt 0:00:40]} Kf8 {[%emt 0:00:43]} 56. Nxd8 {[%emt 0:00:58]} Bd4 {[%emt 0:00:07]} 57. Ne6+ {[%emt 0:00:05]} 1-0

[Event "2nd Irena Warakomska Memorial-A"]
[Site "Suwalki"]
[Date "2018.08.05"]
[Round "6"]
[White "Chylewski, Patryk"]
[Black "Harshini, A."]
[Result "1/2-1/2"]
[ECO "C54"]
[WhiteElo "2270"]
[BlackElo "2124"]
[Annotator "NA"]
[PlyCount "83"]
[EventDate "2018.08.01"]
[EventType "swiss"]
[EventCountry "POL"]
[SourceTitle "playchess.com"]
[Source "ChessBase"]
[SourceQuality "1"]
[TimeControl "40/5400+30:1800+30"]

1. e4 {[%emt 0:00:00]} e5 {[%emt 0:00:00]} 2. Nf3 {[%emt 0:00:00]} Nc6 {[%emt 0:00:00]} 3. d4 {[%emt 0:00:00]} exd4 {[%emt 0:00:00]} 4. Bc4 {[%emt 0:00:00]} Bc5 {[%emt 0:00:00]} 5. c3 {[%emt 0:00:34]} Nf6 {[%emt 0:00:00]} 6. e5 {[%emt 0:00:27]} d5 {[%emt 0:00:07]} 7. Be2 {[%emt 0:00:06]} Ne4 {[%emt 0:02:06]} 8. cxd4 {[%emt 0:00:09]} Bb6 {[%emt 0:00:17]} 9. Nc3 {[%emt 0:00:44]} O-O {[%emt 0:00:51]} 10. O-O {[%emt 0:00:23]} Bg4 {[%emt 0:02:50]} 11. Be3 {[%emt 0:00:16]} f6 {[%emt 0:03:23]} 12. exf6 {[%emt 0:01:31]} Nxf6 {[%emt 0:00:22]} 13. h3 {[%emt 0:05:42]} Bh5 {[%emt 0:01:12]} 14. Rc1 {[%emt 0:06:46]} Qe7 {[%emt 0:04:52]} 15. Re1 {[%emt 0:03:17]} Rad8 {[%emt 0:01:20]} 16. Bg5 {[%emt 0:09:00]} Qb4 {[%emt 0:04:30]} 17. g4 {[%emt 0:12:24]} Bg6 {[%emt 0:04:20]} 18. Be3 {[%emt 0:07:28]} Qxb2 {[%emt 0:01:43]} 19. Nh4 {[%emt 0:01:59]} Ne4 {[%emt 0:10:19]} 20. Na4 {[%emt 0:07:32]} Qb4 {[%emt 0:02:12]} 21. Nxg6 {[%emt 0:01:45]} hxg6 {[%emt 0:00:07]} 22. Nxb6 {[%emt 0:01:53]} axb6 {[%emt 0:00:05]} 23. Qb3 {[%emt 0:03:06]} Qe7 {[%emt 0:07:08]} 24. Bf1 {[%emt 0:10:59]} Qf6 {[%emt 0:07:11]} 25. Qb2 {[%emt 0:03:22]} Rd7 {[%emt 0:04:46]} 26. Bg2 {[%emt 0:01:58]} Na5 {[%emt 0:01:46]} 27. Qe2 {[%emt 0:04:15]} Rdf7 {[%emt 0:02:13]} 28. Rf1 {[%emt 0:05:48]} Qe6 {[%emt 0:03:44]} 29. Qd3 {[%emt 0:00:49]} Re8 {[%emt 0:07:46]} 30. Rce1 {[%emt 0:03:28]} Nc4 {[%emt 0:01:38]} 31. Bc1 {[%emt 0:01:14]} Qc6 {[%emt 0:00:26]} 32. Re2 {[%emt 0:03:43]} b5 {[%emt 0:03:13]} 33. Rfe1 {[%emt 0:00:39]} Kh7 {[%emt 0:10:56]} 34. Bxe4 {[%emt 0:02:35]} dxe4 {[%emt 0:00:25]} 35. Rxe4 {[%emt 0:00:09]} Rxe4 {[%emt 0:00:41]} 36. Qxe4 {[%emt 0:00:06]} Qf6 {[%emt 0:07:08]} 37. Be3 {[%emt 0:01:14]} c6 {[%emt 0:01:05]} 38. g5 {[%emt 0:02:07]} Qf3 {[%emt 0:00:32]} 39. Qxf3 {[%emt 0:00:46]} Rxf3 {[%emt 0:00:03]} 40. Kg2 {[%emt 0:00:00]} Rf5 {[%emt 0:00:00]} 41. h4 {[%emt 0:07:41]} Nd6 {[%emt 0:02:51]} 42. Rc1 {[%emt 0:16:43]} 1/2-1/2

[Event "2nd Irena Warakomska Memorial-A"]
[Site "Suwalki"]
[Date "2018.08.05"]
[Round "6"]
[White "Bykovskiy, Oleg"]
[Black "Walkusz, Witoslaw"]
[Result "1/2-1/2"]
[ECO "A00"]
[WhiteElo "2263"]
[BlackElo "2121"]
[Annotator "NA"]
[PlyCount "59"]
[EventDate "2018.08.01"]
[EventType "swiss"]
[EventCountry "POL"]
[SourceTitle "playchess.com"]
[Source "ChessBase"]
[SourceQuality "1"]
[TimeControl "40/5400+30:1800+30"]

1. Nc3 {[%emt 0:00:00]} e5 {[%emt 0:00:02]} 2. Nf3 {[%emt 0:00:00]} Nc6 {[%emt 0:00:19]} 3. d4 {[%emt 0:00:00]} exd4 {[%emt 0:01:23]} 4. Nxd4 {[%emt 0:00:00]} Nf6 {[%emt 0:01:19]} 5. e4 {[%emt 0:01:35]} Bb4 {[%emt 0:00:56]} 6. Nxc6 {[%emt 0:00:06]} bxc6 {[%emt 0:00:06]} 7. Bd3 {[%emt 0:00:05]} d5 {[%emt 0:00:19]} 8. exd5 {[%emt 0:00:05]} cxd5 {[%emt 0:00:07]} 9. O-O {[%emt 0:00:05]} O-O {[%emt 0:00:07]} 10. Bg5 {[%emt 0:00:05]} c6 {[%emt 0:00:25]} 11. Qf3 {[%emt 0:00:07]} Re8 {[%emt 0:02:28]} 12. h3 {[%emt 0:05:42]} h6 {[%emt 0:01:25]} 13. Bxf6 {[%emt 0:03:15]} Qxf6 {[%emt 0:00:06]} 14. Qxf6 {[%emt 0:00:03]} gxf6 {[%emt 0:00:09]} 15. Ne2 {[%emt 0:01:12]} Bd6 {[%emt 0:00:14]} 16. Ng3 {[%emt 0:00:15]} Rb8 {[%emt 0:03:09]} 17. Rab1 {[%emt 0:01:17]} c5 {[%emt 0:05:01]} 18. Nh5 {[%emt 0:02:31]} Be5 {[%emt 0:01:47]} 19. c3 {[%emt 0:00:09]} Rb6 {[%emt 0:05:03]} 20. Rfe1 {[%emt 0:06:51]} Kf8 {[%emt 0:02:02]} 21. a4 {[%emt 0:09:31]} c4 {[%emt 0:28:30]} 22. Bc2 {[%emt 0:02:22]} Rd8 {[%emt 0:19:57]} 23. Red1 {[%emt 0:04:59]} d4 {[%emt 0:04:46]} 24. cxd4 {[%emt 0:29:50]} Rxd4 {[%emt 0:00:33]} 25. Rxd4 {[%emt 0:03:43]} Bxd4 {[%emt 0:00:05]} 26. b3 {[%emt 0:00:03]} cxb3 {[%emt 0:02:08]} 27. Rxb3 {[%emt 0:01:19]} Rxb3 {[%emt 0:06:04]} 28. Bxb3 {[%emt 0:00:26]} Be6 {[%emt 0:00:32]} 29. Bc2 {[%emt 0:00:29]} Ke7 {[%emt 0:00:53]} 30. Ng7 {[%emt 0:01:11]} 1/2-1/2

[Event "2nd Irena Warakomska Memorial-A"]
[Site "Suwalki"]
[Date "2018.08.05"]
[Round "6"]
[White "Krzywda, Andrzej"]
[Black "Ulanowski, Karol"]
[Result "1/2-1/2"]
[ECO "C45"]
[WhiteElo "2258"]
[BlackElo "2149"]
[Annotator "NA"]
[PlyCount "102"]
[EventDate "2018.08.01"]
[EventType "swiss"]
[EventCountry "POL"]
[SourceTitle "playchess.com"]
[Source "ChessBase"]
[SourceQuality "1"]
[TimeControl "40/5400+30:1800+30"]

1. e4 e5 2. Nf3 Nc6 3. d4 exd4 4. Nxd4 Nf6 5. Nxc6 bxc6 6. e5 Qe7 7. Qe2 Nd5 8. h4 h6 9. h5 Bb7 10. Rh3 O-O-O 11. c4 Nb6 12. a4 Qb4+ 13. Nd2 a5 14. f4 d5 15. Rb3 Qc5 16. cxd5 Rxd5 17. Nf3 Rd8 18. Be3 Qd5 19. Rd3 Bb4+ 20. Kf2 Qe4 21. Bxb6 Qxe2+ 22. Bxe2 cxb6 23. Rad1 Kc7 24. Rxd8 Rxd8 25. Rxd8 Kxd8 26. Bc4 Ke7 27. g4 Bc8 28. f5 Bc5+ 29. Ke2 Bd7 30. Kd3 b5 31. Bb3 Bb6 32. Nd2 Bc7 33. Ke4 Bc8 34. Nf3 Bb7 35. axb5 cxb5+ 36. Bd5 Ba6 37. Nd4 b4 38. f6+ gxf6 39. Nf5+ Kf8 40. exf6 Bd8 41. Nxh6 Bxf6 42. b3 Bc8 43. Nxf7 Bxg4 44. h6 Bd1 45. Kf5 Bc3 46. Ne5 Bc2+ 47. Ke6 Kg8 48. Kd6+ Kh7 49. Nc4 a4 50. bxa4 b3 51. a5 Bxa5 1/2-1/2

[Event "2nd Irena Warakomska Memorial-A"]
[Site "Suwalki"]
[Date "2018.08.05"]
[Round "6"]
[White "Mulet, Piotr"]
[Black "Debarshi, Mukherjee"]
[Result "1-0"]
[ECO "B22"]
[WhiteElo "2238"]
[BlackElo "2308"]
[Annotator "NA"]
[PlyCount "65"]
[EventDate "2018.08.01"]
[EventType "swiss"]
[EventCountry "POL"]
[SourceTitle "playchess.com"]
[Source "ChessBase"]
[SourceQuality "1"]
[TimeControl "40/5400+30:1800+30"]

1. e4 {[%emt 0:00:00]} c5 {[%emt 0:00:10]} 2. c3 {[%emt 0:00:00]} d6 {[%emt 0:01:26]} 3. d4 {[%emt 0:00:00]} Nf6 {[%emt 0:00:05]} 4. Bd3 {[%emt 0:00:00]} g6 {[%emt 0:00:43]} 5. dxc5 {[%emt 0:05:53]} d5 {[%emt 0:12:40]} 6. exd5 {[%emt 0:01:48]} Qxd5 {[%emt 0:00:55]} 7. Bb5+ {[%emt 0:02:25]} Bd7 {[%emt 0:02:59]} 8. Qxd5 {[%emt 0:00:07]} Nxd5 {[%emt 0:00:02]} 9. Bc4 {[%emt 0:00:11]} Bc6 {[%emt 0:09:42]} 10. Nf3 {[%emt 0:00:24]} Nd7 {[%emt 0:00:08]} 11. Nbd2 {[%emt 0:09:05]} Nf4 {[%emt 0:09:42]} 12. g3 {[%emt 0:03:41]} Nh3 {[%emt 0:01:22]} 13. b4 {[%emt 0:00:11]} Bh6 {[%emt 0:13:18]} 14. Be2 {[%emt 0:09:18]} Rd8 {[%emt 0:09:03]} 15. Rf1 {[%emt 0:01:38]} b6 {[%emt 0:07:23]} 16. Nb3 {[%emt 0:06:48]} Bg7 {[%emt 0:01:48]} 17. Nbd4 {[%emt 0:19:50]} Bxf3 {[%emt 0:04:11]} 18. Bxf3 {[%emt 0:00:08]} bxc5 {[%emt 0:00:03]} 19. bxc5 {[%emt 0:00:13]} Nxc5 {[%emt 0:00:20]} 20. Ba3 {[%emt 0:06:18]} Bxd4 {[%emt 0:04:30]} 21. cxd4 {[%emt 0:00:25]} Ne6 {[%emt 0:00:01]} 22. Bc6+ {[%emt 0:01:14]} Kf8 {[%emt 0:00:04]} 23. d5 {[%emt 0:00:08]} Nd4 {[%emt 0:05:20]} 24. Bb2 {[%emt 0:01:38]} Nc2+ {[%emt 0:02:57]} 25. Ke2 {[%emt 0:04:04]} Nxa1 {[%emt 0:00:14]} 26. Bxh8 {[%emt 0:00:07]} Nc2 {[%emt 0:00:50]} 27. Bc3 {[%emt 0:00:12]} Rb8 {[%emt 0:01:45]} 28. Ba4 {[%emt 0:06:24]} Na3 {[%emt 0:01:43]} 29. f4 {[%emt 0:00:27]} Rb6 {[%emt 0:05:08]} 30. Kf3 {[%emt 0:01:18]} Nc4 {[%emt 0:00:02]} 31. Bb3 {[%emt 0:00:57]} Nd6 {[%emt 0:00:49]} 32. Kg2 {[%emt 0:02:13]} Ne4 {[%emt 0:00:13]} 33. Be1 {[%emt 0:02:16]} 1-0